[Event "*** Titled Tuesday Blitz"]
[Site "Chess.com"]
[Date "2021.04.06"]
[Round "10"]
[White "volunteers1998"]
[Black "suneebaker"]
[Result "1/2-1/2"]
[WhiteElo "2193"]
[BlackElo "2119"]
[TimeControl "180+1"]
[EndTime "11:57:22 PDT"]
[Termination "Game drawn by repetition"]

1. e4 {[%clk 0:03:00.9]} 1... e5 {[%clk 0:02:59.7]} 2. Nc3 {[%clk 0:02:59.9]}
2... Nc6 {[%clk 0:02:58.6]} 3. Bc4 {[%clk 0:02:58.9]} 3... Nf6 {[%clk
0:02:57.4]} 4. d3 {[%clk 0:02:58]} 4... Bc5 {[%clk 0:02:56.6]} 5. f4 {[%clk
0:02:53.5]} 5... d6 {[%clk 0:02:50.6]} 6. Nf3 {[%clk 0:02:50.8]} 6... Na5 {[%clk
0:02:39.1]} 7. Bb3 {[%clk 0:02:40.1]} 7... exf4 {[%clk 0:02:26.6]} 8. Bxf4
{[%clk 0:02:37.4]} 8... Nxb3 {[%clk 0:02:21.7]} 9. axb3 {[%clk 0:02:34.3]} 9...
d5 {[%clk 0:02:17.9]} 10. exd5 {[%clk 0:02:24.9]} 10... Nxd5 {[%clk 0:02:17.1]}
11. Qe2+ {[%clk 0:02:23]} 11... Be6 {[%clk 0:02:12.2]} 12. Bg5 {[%clk
0:02:22.6]} 12... Be7 {[%clk 0:01:57]} 13. Bxe7 {[%clk 0:02:18.5]} 13... Qxe7
{[%clk 0:01:55]} 14. O-O {[%clk 0:02:13.5]} 14... Nxc3 {[%clk 0:01:49.8]} 15.
bxc3 {[%clk 0:02:10.9]} 15... Qc5+ {[%clk 0:01:46.4]} 16. Nd4 {[%clk 0:02:08.1]}
16... O-O {[%clk 0:01:39.9]} 17. b4 {[%clk 0:02:04.7]} 17... Qb6 {[%clk
0:01:39.7]} 18. Kh1 {[%clk 0:01:56.5]} 18... Rae8 {[%clk 0:01:38.2]} 19. Nxe6
{[%clk 0:01:50.8]} 19... Rxe6 {[%clk 0:01:37.3]} 20. Qf2 {[%clk 0:01:50.1]}
20... Qxf2 {[%clk 0:01:34.1]} 21. Rxf2 {[%clk 0:01:50.1]} 21... a6 {[%clk
0:01:33.8]} 22. g3 {[%clk 0:01:44.1]} 22... Rfe8 {[%clk 0:01:32.9]} 23. Kg2
{[%clk 0:01:41.6]} 23... f6 {[%clk 0:01:27.5]} 24. c4 {[%clk 0:01:39.4]} 24...
Re3 {[%clk 0:01:23.8]} 25. b5 {[%clk 0:01:37.1]} 25... axb5 {[%clk 0:01:22.1]}
26. cxb5 {[%clk 0:01:35.2]} 26... b6 {[%clk 0:01:21.8]} 27. Ra7 {[%clk
0:01:30.1]} 27... R8e7 {[%clk 0:01:21.6]} 28. Rf3 {[%clk 0:01:27.3]} 28... Re2+
{[%clk 0:01:19.2]} 29. Rf2 {[%clk 0:01:27.5]} 29... Kf7 {[%clk 0:01:16.8]} 30.
c4 {[%clk 0:01:23]} 30... R2e3 {[%clk 0:01:12.4]} 31. Rf3 {[%clk 0:01:20.7]}
31... Re2+ {[%clk 0:01:11.7]} 32. Rf2 {[%clk 0:01:20.4]} 32... Re1 {[%clk
0:01:09.7]} 33. Rd2 {[%clk 0:01:18.1]} 33... Rd7 {[%clk 0:01:07.6]} 34. Kf2
{[%clk 0:01:14.8]} 34... Re5 {[%clk 0:01:05.6]} 35. d4 {[%clk 0:01:11.2]} 35...
Re4 {[%clk 0:01:04.3]} 36. Kf3 {[%clk 0:01:07]} 36... f5 {[%clk 0:01:03.5]} 37.
c5 {[%clk 0:01:03.8]} 37... bxc5 {[%clk 0:00:59.5]} 38. b6 {[%clk 0:01:01.5]}
38... Re8 {[%clk 0:00:47.8]} 39. Rxc7 {[%clk 0:00:43.2]} 39... Rxc7 {[%clk
0:00:41.8]} 40. bxc7 {[%clk 0:00:42.3]} 40... Rc8 {[%clk 0:00:42]} 41. Kf4
{[%clk 0:00:38.9]} 41... cxd4 {[%clk 0:00:37.3]} 42. Rxd4 {[%clk 0:00:35.5]}
42... Rxc7 {[%clk 0:00:37.2]} 43. Kxf5 {[%clk 0:00:33.7]} 43... g6+ {[%clk
0:00:34]} 44. Kf4 {[%clk 0:00:32.7]} 44... Ke6 {[%clk 0:00:31.9]} 45. h4 {[%clk
0:00:32.4]} 45... h6 {[%clk 0:00:30.9]} 46. g4 {[%clk 0:00:31.7]} 46... Rc1
{[%clk 0:00:29]} 47. Ra4 {[%clk 0:00:31.1]} 47... Rf1+ {[%clk 0:00:27.4]} 48.
Kg3 {[%clk 0:00:30.7]} 48... Kf6 {[%clk 0:00:25.5]} 49. Kg2 {[%clk 0:00:28.9]}
49... Rb1 {[%clk 0:00:23.8]} 50. Kg3 {[%clk 0:00:29.1]} 50... Rb3+ {[%clk
0:00:23.5]} 51. Kf4 {[%clk 0:00:28.1]} 51... g5+ {[%clk 0:00:22.2]} 52. hxg5+
{[%clk 0:00:27.9]} 52... hxg5+ {[%clk 0:00:22]} 53. Ke4 {[%clk 0:00:28.1]} 53...
Rg3 {[%clk 0:00:20.9]} 54. Ra6+ {[%clk 0:00:27.5]} 54... Kg7 {[%clk 0:00:18.1]}
55. Kf5 {[%clk 0:00:27.6]} 55... Rf3+ {[%clk 0:00:18.1]} 56. Kxg5 {[%clk
0:00:27.8]} 56... Rf7 {[%clk 0:00:17.9]} 57. Rg6+ {[%clk 0:00:26.8]} 57... Kh7
{[%clk 0:00:17.3]} 58. Rf6 {[%clk 0:00:26.2]} 58... Rb7 {[%clk 0:00:16.6]} 59.
Kf5 {[%clk 0:00:24.7]} 59... Kg7 {[%clk 0:00:16.2]} 60. Rg6+ {[%clk 0:00:23.1]}
60... Kf7 {[%clk 0:00:15.2]} 61. Ra6 {[%clk 0:00:20.7]} 61... Rb5+ {[%clk
0:00:14.8]} 62. Kf4 {[%clk 0:00:20.2]} 62... Rc5 {[%clk 0:00:14.7]} 63. g5
{[%clk 0:00:19.7]} 63... Rb5 {[%clk 0:00:13.9]} 64. Kg4 {[%clk 0:00:19.6]} 64...
Rb7 {[%clk 0:00:12.3]} 65. Kh5 {[%clk 0:00:19.8]} 65... Kg7 {[%clk 0:00:12.2]}
66. Kg4 {[%clk 0:00:18.5]} 66... Rb4+ {[%clk 0:00:11.3]} 67. Kh5 {[%clk
0:00:19.2]} 67... Rb7 {[%clk 0:00:11.1]} 68. Kg4 {[%clk 0:00:17.8]} 68... Rb4+
{[%clk 0:00:10.5]} 69. Kh5 {[%clk 0:00:17.6]} 69... Rb7 {[%clk 0:00:10.4]}
1/2-1/2

[Event "*** Titled Tuesday Blitz"]
[Site "Chess.com"]
[Date "2021.04.06"]
[Round "10"]
[White "laskerisalive"]
[Black "FMOlexandrProhorov"]
[Result "0-1"]
[WhiteElo "2380"]
[BlackElo "2228"]
[TimeControl "180+1"]
[EndTime "11:57:24 PDT"]
[Termination "FMOlexandrProhorov won on time"]

1. d4 {[%clk 0:02:56.4]} 1... g6 {[%clk 0:02:58.7]} 2. g3 {[%clk 0:02:49.9]}
2... Bg7 {[%clk 0:02:59.6]} 3. Bg2 {[%clk 0:02:49]} 3... c5 {[%clk 0:02:59.5]}
4. c3 {[%clk 0:02:45.4]} 4... cxd4 {[%clk 0:02:53.2]} 5. cxd4 {[%clk 0:02:38.4]}
5... d5 {[%clk 0:02:53.5]} 6. Nf3 {[%clk 0:02:37.1]} 6... Nc6 {[%clk 0:02:52.6]}
7. O-O {[%clk 0:02:36.4]} 7... Nf6 {[%clk 0:02:52.8]} 8. Nc3 {[%clk 0:02:34.3]}
8... O-O {[%clk 0:02:53]} 9. Ne5 {[%clk 0:02:33]} 9... Be6 {[%clk 0:02:34.8]}
10. Nxc6 {[%clk 0:02:29.5]} 10... bxc6 {[%clk 0:02:34.8]} 11. Na4 {[%clk
0:02:30]} 11... Nd7 {[%clk 0:02:29.3]} 12. b3 {[%clk 0:02:28.7]} 12... Bf5
{[%clk 0:02:16.6]} 13. Ba3 {[%clk 0:02:25.5]} 13... Re8 {[%clk 0:02:15.9]} 14.
Rc1 {[%clk 0:02:24.2]} 14... Rc8 {[%clk 0:02:14]} 15. Qd2 {[%clk 0:01:39.5]}
15... e5 {[%clk 0:02:08.8]} 16. dxe5 {[%clk 0:01:38.6]} 16... Nxe5 {[%clk
0:02:09.7]} 17. Bb2 {[%clk 0:01:31.4]} 17... h5 {[%clk 0:01:57.4]} 18. Bd4
{[%clk 0:01:28.4]} 18... a6 {[%clk 0:01:47.1]} 19. Qb2 {[%clk 0:01:27]} 19...
Bf6 {[%clk 0:01:24.5]} 20. Nc5 {[%clk 0:01:22.7]} 20... Ng4 {[%clk 0:00:56.2]}
21. e3 {[%clk 0:01:16.9]} 21... Bxd4 {[%clk 0:00:49.1]} 22. Qxd4 {[%clk
0:01:15.8]} 22... a5 {[%clk 0:00:47.1]} 23. h3 {[%clk 0:01:08]} 23... Nf6 {[%clk
0:00:45.6]} 24. Nb7 {[%clk 0:00:59]} 24... Qe7 {[%clk 0:00:43.9]} 25. Nxa5
{[%clk 0:00:56.5]} 25... Bd7 {[%clk 0:00:36]} 26. Nb7 {[%clk 0:00:53.4]} 26...
Ne4 {[%clk 0:00:24.7]} 27. Nc5 {[%clk 0:00:53]} 27... Nxc5 {[%clk 0:00:23.7]}
28. Qxc5 {[%clk 0:00:51.9]} 28... Qf6 {[%clk 0:00:21.2]} 29. Rfd1 {[%clk
0:00:47.3]} 29... Ra8 {[%clk 0:00:20.6]} 30. Rd2 {[%clk 0:00:44.4]} 30... h4
{[%clk 0:00:20.7]} 31. Qd4 {[%clk 0:00:43.3]} 31... Qxd4 {[%clk 0:00:16.9]} 32.
exd4 {[%clk 0:00:43.5]} 32... hxg3 {[%clk 0:00:17.8]} 33. fxg3 {[%clk
0:00:43.2]} 33... Re3 {[%clk 0:00:17.3]} 34. Kf2 {[%clk 0:00:43]} 34... Rae8
{[%clk 0:00:17.1]} 35. Rcc2 {[%clk 0:00:38.2]} 35... Re1 {[%clk 0:00:16.8]} 36.
Re2 {[%clk 0:00:37.8]} 36... R8xe2+ {[%clk 0:00:16.3]} 37. Rxe2 {[%clk
0:00:37.5]} 37... Rd1 {[%clk 0:00:17]} 38. Re7 {[%clk 0:00:35.3]} 38... Bf5
{[%clk 0:00:16.5]} 39. g4 {[%clk 0:00:32.7]} 39... Bb1 {[%clk 0:00:14.1]} 40. a4
{[%clk 0:00:28.5]} 40... Rxd4 {[%clk 0:00:09.9]} 41. a5 {[%clk 0:00:28.2]} 41...
Rd2+ {[%clk 0:00:07.3]} 42. Kg1 {[%clk 0:00:28.1]} 42... Ra2 {[%clk 0:00:07.8]}
43. Ra7 {[%clk 0:00:20.9]} 43... Bd3 {[%clk 0:00:07.3]} 44. Ra8+ {[%clk
0:00:17.8]} 44... Kg7 {[%clk 0:00:06.6]} 45. Rc8 {[%clk 0:00:17.4]} 45... Bb5
{[%clk 0:00:06.9]} 46. Ra8 {[%clk 0:00:13.4]} 46... Kf6 {[%clk 0:00:06.9]} 47.
b4 {[%clk 0:00:13.5]} 47... Ke5 {[%clk 0:00:07.1]} 48. Re8+ {[%clk 0:00:13.3]}
48... Kf4 {[%clk 0:00:07.4]} 49. Rf8 {[%clk 0:00:12.9]} 49... Kg3 {[%clk
0:00:07.8]} 50. Bf1 {[%clk 0:00:09.2]} 50... Ra1 {[%clk 0:00:07.7]} 51. Rxf7
{[%clk 0:00:08.8]} 51... d4 {[%clk 0:00:07.2]} 52. Rf2 {[%clk 0:00:05.1]} 52...
d3 {[%clk 0:00:07]} 53. Rg2+ {[%clk 0:00:04.8]} 53... Kf3 {[%clk 0:00:07.5]} 54.
Rf2+ {[%clk 0:00:04.5]} 54... Kg3 {[%clk 0:00:07.6]} 55. Rg2+ {[%clk 0:00:04.1]}
55... Kf4 {[%clk 0:00:08.3]} 56. Rf2+ {[%clk 0:00:03.3]} 56... Ke3 {[%clk
0:00:09.2]} 57. Kg2 {[%clk 0:00:02]} 57... c5 {[%clk 0:00:06.7]} 58. Rf3+ {[%clk
0:00:01.3]} 58... Kd4 {[%clk 0:00:05.9]} 0-1

[Event "*** Titled Tuesday Blitz"]
[Site "Chess.com"]
[Date "2021.04.06"]
[Round "10"]
[White "NiranjanNavalgund"]
[Black "Aygehovit1992"]
[Result "0-1"]
[WhiteElo "2498"]
[BlackElo "2651"]
[TimeControl "180+1"]
[EndTime "11:57:27 PDT"]
[Termination "Aygehovit1992 won by checkmate"]

1. e4 {[%clk 0:02:43.6]} 1... c5 {[%clk 0:02:59.7]} 2. d4 {[%clk 0:02:43.6]}
2... cxd4 {[%clk 0:02:59.7]} 3. c3 {[%clk 0:02:43.4]} 3... dxc3 {[%clk 0:03:00]}
4. Bc4 {[%clk 0:02:40.5]} 4... Nc6 {[%clk 0:03:00.9]} 5. Nf3 {[%clk 0:02:38.7]}
5... e6 {[%clk 0:03:01.1]} 6. O-O {[%clk 0:02:38.7]} 6... Nf6 {[%clk 0:02:59.4]}
7. Nxc3 {[%clk 0:02:38.9]} 7... a6 {[%clk 0:02:58.6]} 8. e5 {[%clk 0:02:35.3]}
8... Ng4 {[%clk 0:02:58.4]} 9. Bf4 {[%clk 0:02:34.9]} 9... Qc7 {[%clk
0:02:58.2]} 10. Qe2 {[%clk 0:02:34.7]} 10... f6 {[%clk 0:02:53.7]} 11. Nd5
{[%clk 0:02:30.9]} 11... Qb8 {[%clk 0:02:48.1]} 12. exf6 {[%clk 0:02:28.1]}
12... Bd6 {[%clk 0:02:46.7]} 13. fxg7 {[%clk 0:02:21.3]} 13... Rg8 {[%clk
0:02:45.3]} 14. h3 {[%clk 0:02:11.8]} 14... Bxf4 {[%clk 0:02:42.8]} 15. hxg4
{[%clk 0:02:11.2]} 15... Rxg7 {[%clk 0:02:42.7]} 16. Nb6 {[%clk 0:02:03.7]}
16... Ra7 {[%clk 0:02:30.6]} 17. Rad1 {[%clk 0:02:02.6]} 17... Bc7 {[%clk
0:02:25.8]} 18. Nd5 {[%clk 0:01:54.4]} 18... b5 {[%clk 0:02:23.2]} 19. Bb3
{[%clk 0:01:53.4]} 19... Bd8 {[%clk 0:02:18.2]} 20. g5 {[%clk 0:01:50.9]} 20...
Bxg5 {[%clk 0:01:58.7]} 21. Nxg5 {[%clk 0:01:50.6]} 21... Rxg5 {[%clk
0:01:59.6]} 22. Qe4 {[%clk 0:01:46.6]} 22... Qe5 {[%clk 0:01:55.2]} 23. Qh4
{[%clk 0:01:44.5]} 23... Qg7 {[%clk 0:01:54.4]} 24. Nf4 {[%clk 0:01:39.6]} 24...
Ne5 {[%clk 0:01:51.4]} 25. f3 {[%clk 0:01:31.6]} 25... Bb7 {[%clk 0:01:43.8]}
26. Kf2 {[%clk 0:01:17.7]} 26... h6 {[%clk 0:01:33.2]} 27. Rfe1 {[%clk
0:01:14.5]} 27... Qf6 {[%clk 0:01:18.8]} 28. Re3 {[%clk 0:01:06.5]} 28... Ng4+
{[%clk 0:01:08.6]} 29. fxg4 {[%clk 0:00:57.8]} 29... Qxf4+ {[%clk 0:01:07.9]}
30. Ke2 {[%clk 0:00:57.5]} 30... Qxg4+ {[%clk 0:01:04.4]} 31. Qxg4 {[%clk
0:00:56.7]} 31... Rxg4 {[%clk 0:01:05.3]} 32. g3 {[%clk 0:00:57.1]} 32... Rg6
{[%clk 0:01:00.2]} 33. Rd6 {[%clk 0:00:54.9]} 33... Ke7 {[%clk 0:00:57.2]} 34.
Rb6 {[%clk 0:00:54.8]} 34... Bc6 {[%clk 0:00:55.4]} 35. Rb8 {[%clk 0:00:54.2]}
35... a5 {[%clk 0:00:54.4]} 36. Bc2 {[%clk 0:00:49.4]} 36... Rf6 {[%clk
0:00:54.1]} 37. Rg8 {[%clk 0:00:48.7]} 37... a4 {[%clk 0:00:53]} 38. a3 {[%clk
0:00:47.3]} 38... Rb7 {[%clk 0:00:52.2]} 39. Rg7+ {[%clk 0:00:45.9]} 39... Kf8
{[%clk 0:00:49.7]} 40. Rh7 {[%clk 0:00:44.9]} 40... b4 {[%clk 0:00:47.2]} 41.
Kd2 {[%clk 0:00:29]} 41... bxa3 {[%clk 0:00:46.4]} 42. bxa3 {[%clk 0:00:29.6]}
42... Rb2 {[%clk 0:00:39.4]} 43. Kc3 {[%clk 0:00:29.6]} 43... Rb5 {[%clk
0:00:36.6]} 44. Bxa4 {[%clk 0:00:23.6]} 44... Rb6 {[%clk 0:00:35.6]} 45. Bc2
{[%clk 0:00:22.5]} 45... Kg8 {[%clk 0:00:33.8]} 46. Re7 {[%clk 0:00:21.8]} 46...
Rf7 {[%clk 0:00:33.5]} 47. Re8+ {[%clk 0:00:20.6]} 47... Kg7 {[%clk 0:00:33.4]}
48. Rd8 {[%clk 0:00:19.9]} 48... Bb5 {[%clk 0:00:26.8]} 49. g4 {[%clk
0:00:19.6]} 49... Rc6+ {[%clk 0:00:27]} 50. Kb3 {[%clk 0:00:17]} 50... d5 {[%clk
0:00:18.6]} 51. a4 {[%clk 0:00:14.3]} 51... Bc4+ {[%clk 0:00:14.9]} 52. Kb4
{[%clk 0:00:14.5]} 52... Rb7+ {[%clk 0:00:14.5]} 53. Ka3 {[%clk 0:00:14.5]}
53... Bf1 {[%clk 0:00:04.6]} 54. g5 {[%clk 0:00:14]} 54... Rxc2 {[%clk
0:00:04.1]} 55. gxh6+ {[%clk 0:00:13.5]} 55... Kxh6 {[%clk 0:00:05]} 56. Rxe6+
{[%clk 0:00:13.5]} 56... Kg7 {[%clk 0:00:05.2]} 57. Re5 {[%clk 0:00:12.5]} 57...
Bc4 {[%clk 0:00:05]} 58. Rg5+ {[%clk 0:00:08.8]} 58... Kf6 {[%clk 0:00:05.1]}
59. Rd6+ {[%clk 0:00:07.7]} 59... Kxg5 {[%clk 0:00:04.9]} 60. a5 {[%clk
0:00:08.6]} 60... Ra2# {[%clk 0:00:04.5]} 0-1

[Event "*** Titled Tuesday Blitz"]
[Site "Chess.com"]
[Date "2021.04.06"]
[Round "10"]
[White "Sanyura"]
[Black "TimofeevAr"]
[Result "0-1"]
[WhiteElo "2600"]
[BlackElo "2830"]
[TimeControl "180+1"]
[EndTime "11:57:29 PDT"]
[Termination "TimofeevAr won on time"]

1. Nf3 {[%clk 0:02:50.2]} 1... Nf6 {[%clk 0:02:58.8]} 2. g3 {[%clk 0:02:50.5]}
2... g6 {[%clk 0:02:58.7]} 3. Bg2 {[%clk 0:02:51.1]} 3... Bg7 {[%clk 0:02:59.2]}
4. O-O {[%clk 0:02:52]} 4... O-O {[%clk 0:02:59.5]} 5. d4 {[%clk 0:02:52.7]}
5... d5 {[%clk 0:02:58]} 6. c4 {[%clk 0:02:52.9]} 6... dxc4 {[%clk 0:02:58.3]}
7. Na3 {[%clk 0:02:52.6]} 7... c6 {[%clk 0:02:58]} 8. Nxc4 {[%clk 0:02:52.2]}
8... Be6 {[%clk 0:02:58.4]} 9. Qc2 {[%clk 0:02:47.4]} 9... Bd5 {[%clk
0:02:57.1]} 10. a4 {[%clk 0:02:27.6]} 10... Na6 {[%clk 0:02:55]} 11. Bd2 {[%clk
0:02:21]} 11... Rc8 {[%clk 0:02:50.8]} 12. Rfd1 {[%clk 0:02:13.5]} 12... c5
{[%clk 0:02:42.9]} 13. b3 {[%clk 0:01:31.7]} 13... cxd4 {[%clk 0:02:38.6]} 14.
Bf4 {[%clk 0:01:25.8]} 14... Be4 {[%clk 0:02:12.7]} 15. Qd2 {[%clk 0:01:11.8]}
15... d3 {[%clk 0:02:12.5]} 16. exd3 {[%clk 0:01:07.7]} 16... Bd5 {[%clk
0:02:12.1]} 17. Rac1 {[%clk 0:01:03.9]} 17... Nc5 {[%clk 0:02:11.3]} 18. Rb1
{[%clk 0:00:53.7]} 18... b6 {[%clk 0:02:04.6]} 19. Bh6 {[%clk 0:00:41.6]} 19...
Bxf3 {[%clk 0:01:51.6]} 20. Bxf3 {[%clk 0:00:38.1]} 20... Bxh6 {[%clk
0:01:51.7]} 21. Qxh6 {[%clk 0:00:37.4]} 21... Qd4 {[%clk 0:01:52.2]} 22. Qe3
{[%clk 0:00:31.4]} 22... Ne6 {[%clk 0:01:38.3]} 23. Kg2 {[%clk 0:00:17]} 23...
Rfd8 {[%clk 0:01:36.8]} 24. Rbc1 {[%clk 0:00:15.3]} 24... Kf8 {[%clk 0:01:33.7]}
25. Ne5 {[%clk 0:00:12.6]} 25... Rxc1 {[%clk 0:01:23.2]} 26. Rxc1 {[%clk
0:00:13.5]} 26... Qxe3 {[%clk 0:01:23]} 27. fxe3 {[%clk 0:00:14.4]} 27... Nc5
{[%clk 0:01:23]} 28. d4 {[%clk 0:00:10.4]} 28... Nxb3 {[%clk 0:01:22.9]} 29. Rc7
{[%clk 0:00:10.4]} 29... a5 {[%clk 0:01:21.5]} 30. Rb7 {[%clk 0:00:08.9]} 30...
Nd2 {[%clk 0:00:53]} 31. Rxb6 {[%clk 0:00:08.1]} 31... Nd5 {[%clk 0:00:36.8]}
32. Bxd5 {[%clk 0:00:06.4]} 32... Rxd5 {[%clk 0:00:36.6]} 33. Rb8+ {[%clk
0:00:05.4]} 33... Kg7 {[%clk 0:00:35.7]} 34. Rb7 {[%clk 0:00:06]} 34... Kf8
{[%clk 0:00:25.2]} 35. Ra7 {[%clk 0:00:05.2]} 35... f6 {[%clk 0:00:18.8]} 36.
Nc6 {[%clk 0:00:05.2]} 36... Nc4 {[%clk 0:00:19.1]} 37. Kf3 {[%clk 0:00:04.8]}
37... Rf5+ {[%clk 0:00:17.4]} 38. Ke2 {[%clk 0:00:03.6]} 38... e5 {[%clk
0:00:13.3]} 39. d5 {[%clk 0:00:03.1]} 39... e4 {[%clk 0:00:13.6]} 40. Ra8+
{[%clk 0:00:03.2]} 40... Kf7 {[%clk 0:00:13.3]} 41. Ra7+ {[%clk 0:00:03.6]}
41... Kf8 {[%clk 0:00:13.7]} 42. d6 {[%clk 0:00:03]} 42... Nxd6 {[%clk 0:00:13]}
43. Nxa5 {[%clk 0:00:03.4]} 43... Rc5 {[%clk 0:00:12.4]} 44. Nb3 {[%clk
0:00:03]} 44... Rc2+ {[%clk 0:00:12.4]} 45. Kd1 {[%clk 0:00:03.6]} 45... Rxh2
{[%clk 0:00:12.1]} 46. Ra6 {[%clk 0:00:03.9]} 46... Nc4 {[%clk 0:00:11.8]} 47.
Rxf6+ {[%clk 0:00:03.2]} 47... Ke7 {[%clk 0:00:11.4]} 48. Rc6 {[%clk 0:00:03.4]}
48... Nxe3+ {[%clk 0:00:11.2]} 49. Kc1 {[%clk 0:00:03.9]} 49... Nd5 {[%clk
0:00:09.1]} 50. Rc5 {[%clk 0:00:01.9]} 50... Kd6 {[%clk 0:00:08.9]} 51. Rc8
{[%clk 0:00:02.3]} 51... e3 {[%clk 0:00:08.8]} 52. Rd8+ {[%clk 0:00:02.9]} 52...
Ke5 {[%clk 0:00:07.2]} 53. Re8+ {[%clk 0:00:03.5]} 53... Kf5 {[%clk 0:00:07.6]}
54. Nd4+ {[%clk 0:00:03.4]} 54... Kg4 {[%clk 0:00:07.4]} 55. Re4+ {[%clk
0:00:02.9]} 55... Kxg3 {[%clk 0:00:06.8]} 56. Re5 {[%clk 0:00:02.8]} 56... Rh5
{[%clk 0:00:04.5]} 57. Re4 {[%clk 0:00:02]} 57... Kf2 {[%clk 0:00:03.3]} 58. a5
{[%clk 0:00:01.5]} 58... Nc3 {[%clk 0:00:03.1]} 59. Rf4+ {[%clk 0:00:01.1]}
59... Kg2 {[%clk 0:00:03.5]} 0-1

[Event "*** Titled Tuesday Blitz"]
[Site "Chess.com"]
[Date "2021.04.06"]
[Round "10"]
[White "korkmaz16"]
[Black "AniJak"]
[Result "1/2-1/2"]
[WhiteElo "2404"]
[BlackElo "2305"]
[TimeControl "180+1"]
[EndTime "11:57:29 PDT"]
[Termination "Game drawn - insufficient material"]

1. e4 {[%clk 0:03:00.9]} 1... c6 {[%clk 0:03:00.1]} 2. d4 {[%clk 0:03:00.5]}
2... d5 {[%clk 0:03:01]} 3. Nc3 {[%clk 0:03:00.7]} 3... dxe4 {[%clk 0:03:00.9]}
4. Nxe4 {[%clk 0:03:01.3]} 4... Nf6 {[%clk 0:03:01.6]} 5. Nxf6+ {[%clk 0:03:01]}
5... exf6 {[%clk 0:03:02.5]} 6. Bc4 {[%clk 0:02:55.2]} 6... Qb6 {[%clk
0:03:01.2]} 7. Qe2+ {[%clk 0:02:50.7]} 7... Be7 {[%clk 0:02:56.4]} 8. c3 {[%clk
0:02:48.6]} 8... Bf5 {[%clk 0:02:48.3]} 9. Nf3 {[%clk 0:02:48.1]} 9... Nd7
{[%clk 0:02:47]} 10. O-O {[%clk 0:02:47.7]} 10... Nf8 {[%clk 0:02:26.4]} 11. Re1
{[%clk 0:02:26.9]} 11... Be6 {[%clk 0:02:21.7]} 12. Bf4 {[%clk 0:02:21]} 12...
O-O-O {[%clk 0:02:18.2]} 13. a4 {[%clk 0:02:16]} 13... Bxc4 {[%clk 0:02:06.8]}
14. Qxe7 {[%clk 0:02:02.4]} 14... Rd7 {[%clk 0:01:39.8]} 15. Qe8+ {[%clk
0:01:56.4]} 15... Rd8 {[%clk 0:01:39.7]} 16. Qe7 {[%clk 0:01:51.9]} 16... Rd7
{[%clk 0:01:39.7]} 17. Qe4 {[%clk 0:01:41.3]} 17... Bd5 {[%clk 0:01:31.2]} 18.
Qe3 {[%clk 0:01:37]} 18... Ne6 {[%clk 0:01:24.5]} 19. Bg3 {[%clk 0:01:37]} 19...
Qxb2 {[%clk 0:01:17.4]} 20. Nd2 {[%clk 0:01:27.6]} 20... Nc7 {[%clk 0:00:57.1]}
21. Reb1 {[%clk 0:01:20.9]} 21... Qc2 {[%clk 0:00:55.6]} 22. c4 {[%clk
0:01:19.6]} 22... Be6 {[%clk 0:00:33.3]} 23. d5 {[%clk 0:01:17]} 23... cxd5
{[%clk 0:00:26.1]} 24. Rc1 {[%clk 0:01:16.4]} 24... d4 {[%clk 0:00:24.9]} 25.
Qf4 {[%clk 0:01:12.9]} 25... Qf5 {[%clk 0:00:24]} 26. Qh4 {[%clk 0:01:06]} 26...
g5 {[%clk 0:00:23.4]} 27. Qh5 {[%clk 0:01:04.2]} 27... Qg6 {[%clk 0:00:23.6]}
28. Qe2 {[%clk 0:01:00.2]} 28... h5 {[%clk 0:00:23.9]} 29. c5 {[%clk 0:00:54.1]}
29... Bd5 {[%clk 0:00:22]} 30. Nf3 {[%clk 0:00:48.7]} 30... h4 {[%clk
0:00:20.4]} 31. Bd6 {[%clk 0:00:48.6]} 31... Bxf3 {[%clk 0:00:18.3]} 32. Qxf3
{[%clk 0:00:47.3]} 32... g4 {[%clk 0:00:16.7]} 33. Qb3 {[%clk 0:00:46.8]} 33...
Qe4 {[%clk 0:00:12.8]} 34. Re1 {[%clk 0:00:42.5]} 34... Qd5 {[%clk 0:00:11.5]}
35. Rab1 {[%clk 0:00:36]} 35... Qxb3 {[%clk 0:00:10.9]} 36. Rxb3 {[%clk
0:00:35.9]} 36... Re8 {[%clk 0:00:11.8]} 37. Reb1 {[%clk 0:00:34.6]} 37... b6
{[%clk 0:00:10.3]} 38. Bxc7 {[%clk 0:00:33.4]} 38... Rxc7 {[%clk 0:00:09.9]} 39.
cxb6 {[%clk 0:00:33.5]} 39... axb6 {[%clk 0:00:10.1]} 40. Rxb6 {[%clk
0:00:33.9]} 40... d3 {[%clk 0:00:10.1]} 41. Rd6 {[%clk 0:00:28.4]} 41... Rd8
{[%clk 0:00:09.3]} 42. Rxd8+ {[%clk 0:00:25.8]} 42... Kxd8 {[%clk 0:00:09.6]}
43. Rd1 {[%clk 0:00:24.2]} 43... Rc3 {[%clk 0:00:09.7]} 44. f3 {[%clk
0:00:22.8]} 44... g3 {[%clk 0:00:07.9]} 45. hxg3 {[%clk 0:00:23.3]} 45... hxg3
{[%clk 0:00:08.2]} 46. Kf1 {[%clk 0:00:24]} 46... Kc7 {[%clk 0:00:08.4]} 47. Ke1
{[%clk 0:00:24.5]} 47... Kb6 {[%clk 0:00:08.3]} 48. Kd2 {[%clk 0:00:25.1]} 48...
Rc2+ {[%clk 0:00:08.7]} 49. Kxd3 {[%clk 0:00:25.8]} 49... Rxg2 {[%clk
0:00:09.1]} 50. Ke3 {[%clk 0:00:26.3]} 50... Rf2 {[%clk 0:00:08.7]} 51. Rg1
{[%clk 0:00:25]} 51... f5 {[%clk 0:00:07.3]} 52. Rxg3 {[%clk 0:00:23.3]} 52...
Ra2 {[%clk 0:00:08]} 53. Rg5 {[%clk 0:00:20.5]} 53... Ra3+ {[%clk 0:00:06.9]}
54. Kf4 {[%clk 0:00:20.1]} 54... Rxa4+ {[%clk 0:00:06.6]} 55. Kxf5 {[%clk
0:00:20.7]} 55... Kc6 {[%clk 0:00:06.9]} 56. Kf6 {[%clk 0:00:19.2]} 56... Kd6
{[%clk 0:00:06.6]} 57. Rf5 {[%clk 0:00:17.7]} 57... Ra7 {[%clk 0:00:05.9]} 58.
Kg7 {[%clk 0:00:15.7]} 58... Ke6 {[%clk 0:00:05.7]} 59. Rf6+ {[%clk 0:00:16.2]}
59... Ke5 {[%clk 0:00:05.7]} 60. f4+ {[%clk 0:00:14.3]} 60... Ke4 {[%clk
0:00:06.2]} 61. Kf8 {[%clk 0:00:14.6]} 61... Ra5 {[%clk 0:00:04]} 62. Kxf7
{[%clk 0:00:08.8]} 62... Rf5 {[%clk 0:00:04.2]} 63. Rxf5 {[%clk 0:00:06.6]}
63... Kxf5 {[%clk 0:00:04.4]} 64. Ke7 {[%clk 0:00:07.2]} 64... Kxf4 {[%clk
0:00:05.3]} 1/2-1/2